bitfinex-derivatives/quotes_ETHF0:USTF0_20260303
["timestamp","ask_amount","ask_price","bid_price","bid_amount"]
[1772560990696,1.24484339,1982.0,1981.4,1.23317165]
[1772560990901,1.24860675,1982.1,1981.4,1.23317165]
[1772560992207,1.24860675,1982.1,1981.2,0.00617932]
[1772560993111,1.24484339,1982.0,1980.2,1.23317165]
[1772560993299,1.24484339,1981.7,1980.2,1.23317165]
[1772560993500,1.24484339,1981.5,1980.2,1.23317165]
[1772560994105,1.24484339,1981.3,1980.2,1.23925151]
[1772560994406,1.24484339,1981.3,1980.2,0.00607986]
[1772560994706,1.24484339,1981.3,1980.2,1.23925151]
[1772560995306,1.24484339,1981.3,1980.2,0.00607986]
[1772560995510,1.24484339,1981.3,1979.8,1.23317165]
[1772560995804,1.24484339,1981.4,1980.4,1.23317165]
[1772560996207,1.24484339,1981.4,1980.6,1.23317165]
[1772560996408,1.24484339,1981.4,1980.6,1.23702156]
[1772560997212,1.24484339,1981.4,1980.8,1.23317165]
[1772560998106,1.24484339,1981.4,1980.7,0.25242]
[1772560999007,1.18166979,1981.6,1980.7,1.54086993]
[1772560999212,1.18166979,1982.0,1981.0,1.28844993]
[1772561000405,1.18166979,1982.0,1981.1,0.25237]
[1772561000612,1.18166979,1982.0,1981.3,1.4861072]
[1772561000809,1.18166979,1982.0,1980.9,1.2337572]
[1772561001112,1.18166979,1982.0,1980.8,0.25241]
[1772561001614,1.18166979,1982.0,1980.8,1.4861672]
[1772561001817,1.2377159,1981.9,1980.8,1.4861672]
[1772561002413,1.2377159,1981.7,1980.6,0.00384991]
[1772561003011,1.2377159,1981.5,1980.1,1.2337572]
[1772561003210,1.2377159,1981.3,1980.1,1.2337572]
[1772561003414,1.2377159,1981.1,1980.2,1.4862472]
[1772561003615,1.2377159,1981.4,1980.2,1.4862472]
[1772561004114,1.2377159,1981.4,1980.2,1.49138577]
[1772561004507,1.2377159,1981.4,1980.5,1.2337572]
[1772561005211,1.2377159,1982.0,1980.5,1.2337572]
[1772561005410,1.2377159,1981.8,1980.5,1.2337572]
[1772561005616,1.2377159,1981.8,1980.7,1.2337572]
[1772561006308,1.2377159,1981.8,1980.9,1.2337572]
[1772561007619,1.2377159,1981.8,1980.4,1.2337572]
[1772561007815,1.2377159,1981.8,1980.6,1.2337572]
[1772561008013,7.8497159,1981.8,1980.9,1.4861572]
[1772561008317,1.2377159,1981.7,1980.9,1.4861572]
[1772561008616,1.2377159,1981.7,1980.9,0.2524]
[1772561008818,1.2377159,1981.7,1980.7,1.2337572]
[1772561009017,1.2377159,1981.7,1980.3,6.21092]
[1772561009018,1.2377159,1981.7,1980.8,1.4861672]
[1772561010219,1.2377159,1981.7,1980.4,1.2337572]
[1772561011022,1.2377159,1981.5,1980.4,1.2337572]
[1772561011220,1.2377159,1981.3,1980.2,1.23889577]
[1772561011515,1.2377159,1981.1,1980.2,0.00513857]
[1772561011719,1.2377159,1981.1,1980.2,1.49137577]
[1772561015322,1.2377159,1980.9,1980.2,1.49137577]
[1772561015522,1.2377159,1981.2,1980.2,1.49137577]
[1772561015722,1.2377159,1981.3,1980.6,0.25244]
[1772561016122,1.2377159,1981.8,1981.4,0.25233]
[1772561016320,1.24147926,1982.1,1981.4,0.25233]
[1772561016520,1.24147926,1982.1,1981.1,0.25237]
[1772561016723,1.24147926,1982.1,1981.1,0.81389045]
[1772561017223,1.24147926,1982.1,1981.2,0.56152045]
[1772561017616,1.24147926,1982.1,1981.1,0.25237]
[1772561018021,1.2377159,1981.9,1980.8,0.56291915]
[1772561018721,1.2377159,1981.9,1980.6,0.80094966]
[1772561018921,1.2377159,1981.7,1980.6,0.80094966]
[1772561019521,1.2377159,1981.7,1980.6,0.25243]
[1772561019823,1.2377159,1981.5,1980.6,0.25243]
[1772561021127,1.2377159,1981.5,1980.6,0.80741697]
[1772561022727,1.2377159,1981.5,1980.8,0.25241]
[1772561024228,1.2377159,1981.5,1980.6,0.55954544]
[1772561024229,1.2377159,1981.5,1980.4,7.16928886]
[1772561024428,1.2377159,1981.3,1980.4,0.55728886]
[1772561024724,1.2377159,1981.3,1980.3,0.25247]
[1772561024725,0.50836438,1981.2,1980.3,0.25247]
[1772561024923,1.2377159,1981.1,1980.3,0.25247]
[1772561028324,1.2377159,1981.1,1980.5,0.25245]
[1772561029627,1.21469848,1980.9,1980.2,0.00513857]
[1772561030726,1.21469848,1980.7,1980.2,0.00513857]
[1772561030927,1.22067683,1980.7,1980.0,0.2525]
[1772561031123,1.21469848,1980.5,1979.4,0.53749314]
[1772561031426,1.21469848,1980.3,1979.1,0.25262]
[1772561031627,1.21469848,1980.1,1979.1,0.78809301]
[1772561031823,1.21469848,1980.1,1979.3,0.2526]
[1772561032132,1.21469848,1980.1,1979.5,0.78805301]
[1772561032526,1.21469848,1980.1,1979.5,0.25258]
[1772561033223,6.17326762,1980.6,1979.5,0.25258]
[1772561033224,1.21469848,1980.4,1979.6,0.52976006]
[1772561034126,1.21469848,1980.4,1979.5,0.25258]
[1772561034327,1.21469848,1980.4,1979.5,0.78035169]
[1772561035226,1.21469848,1980.4,1979.8,0.50332552]
[1772561035624,1.21469848,1980.6,1979.9,0.75393191]
[1772561035830,1.21469848,1980.6,1979.6,6.21318]
[1772561035831,0.00597835,1980.7,1980.1,0.2525]
[1772561036029,1.22067683,1980.7,1980.1,0.75390191]
[1772561036227,1.22067683,1980.7,1980.1,0.2525]
[1772561036727,1.22067683,1980.7,1980.2,0.49453432]
[1772561038125,1.22067683,1980.7,1980.1,0.2525]
[1772561040228,1.22067683,1980.7,1980.1,0.72629172]
[1772561040430,1.22067683,1980.7,1980.1,0.2525]
[1772561040630,1.22067683,1980.7,1979.7,7.25511576]
[1772561040933,1.22067683,1980.7,1979.9,0.64309576]
[1772561041330,1.22067683,1980.7,1980.0,0.38885068]
[1772561041537,1.22067683,1980.7,1980.1,0.2525]
[1772561042033,1.22067683,1980.7,1980.2,0.38885068]
[1772561042534,1.22067683,1980.7,1980.1,0.2525]
[1772561044234,1.22067683,1980.7,1980.1,0.63711432]
[1772561044734,1.22067683,1980.7,1980.1,0.2525]
[1772561045132,1.22067683,1980.7,1978.9,19.18701457]
[1772561045133,1.21469848,1980.6,1979.4,0.37923146]
[1772561045434,1.21469848,1980.4,1979.4,0.37923146]
[1772561045631,1.21469848,1980.4,1979.2,0.63019969]
[1772561046031,1.21469848,1980.4,1979.2,0.2526]
[1772561046338,1.21469848,1980.2,1979.2,0.2526]
[1772561046535,1.21469848,1980.0,1979.2,0.2526]
[1772561047432,1.21469848,1980.0,1978.8,0.37568143]
[1772561047628,1.21469848,1980.0,1978.9,0.25265]
[1772561047829,1.21469848,1980.0,1978.9,0.25631838]
[1772561048535,1.21469848,1979.8,1978.9,0.63300028]
[1772561048730,1.21469848,1979.8,1979.1,0.25263]
[1772561048935,1.21469848,1979.8,1979.3,0.2526]
[1772561049135,1.21469848,1979.8,1979.3,0.6292819]
[1772561049530,1.21469848,1979.8,1979.3,0.2526]
[1772561050837,1.21469848,1980.2,1979.4,0.37713732]
[1772561051238,1.21469848,1980.2,1979.5,0.25258]
[1772561051435,1.21469848,1980.2,1979.5,0.62821437]
[1772561051635,0.65901848,1980.6,1980.2,1.14843393]
[1772561051935,1.22067683,1980.7,1980.2,1.14843393]
[1772561052740,1.22067683,1980.7,1980.1,0.2525]
[1772561052938,1.22067683,1980.7,1979.9,1.14843393]
[1772561053138,1.22067683,1980.7,1979.7,1.14843393]
[1772561053338,1.22067683,1980.7,1979.8,1.40097393]
[1772561053533,1.22067683,1980.7,1979.6,1.14843393]
[1772561053737,1.21469848,1980.5,1979.4,1.14843393]
[1772561054340,1.21469848,1980.5,1979.5,1.40101393]
[1772561056843,1.22067683,1980.7,1979.9,1.40095393]
[1772561058640,8.35e-06,1980.7,1980.4,1.23340434]
[1772561058840,1.23189811,1980.9,1980.4,1.23340434]
[1772561059041,1.23189811,1980.9,1980.3,0.25247]
[1772561059540,1.23189811,1981.3,1980.3,1.48587434]
[1772561059738,1.23189811,1981.2,1980.3,1.48943984]
[1772561060338,1.23189811,1981.2,1980.3,0.2560355]
[1772561060741,1.2065103,1980.9,1979.8,6.86453]
[1772561060939,1.2065103,1980.7,1979.8,0.25253]
[1772561061140,1.2065103,1980.5,1979.8,0.25253]
[1772561061346,1.2065103,1980.3,1979.3,0.25259]
[1772561061545,1.2065103,1980.1,1979.1,1.16540614]
[1772561062141,1.2065103,1980.1,1979.1,1.1703071]
[1772561062542,1.2065103,1980.1,1979.5,1.16540614]
[1772561063246,1.2065103,1980.1,1979.4,0.25259]
[1772561064148,1.2065103,1980.1,1979.4,1.41799614]
[1772561066547,1.2065103,1980.3,1979.4,1.41799614]
[1772561069649,1.2065103,1980.3,1979.7,0.25254]
[1772561069851,6.612,1981.0,1979.9,1.41793614]
[1772561070054,1.2065103,1980.8,1979.9,1.41793614]
[1772561071252,1.2065103,1981.1,1980.5,1.16540614]
[1772561071655,1.2065103,1981.1,1980.6,1.41784614]
[1772561072549,1.21267858,1981.3,1980.6,1.41784614]
[1772561073555,0.00616828,1981.3,1980.6,1.41784614]
[1772561074556,1.21267858,1981.3,1980.6,1.41784614]
[1772561075063,1.21267858,1981.3,1980.6,0.25244]
[1772561075264,0.00616828,1981.3,1980.6,1.41784614]
[1772561075466,1.21267858,1981.3,1980.6,1.41784614]
[1772561075764,1.21267858,1981.3,1980.5,6.61681923]
[1772561076062,1.21267858,1981.3,1980.6,1.16540614]
[1772561076463,1.21267858,1981.3,1980.7,1.41782614]
[1772561076966,1.21267858,1981.3,1980.5,6.61681923]
[1772561077268,1.21267858,1981.3,1980.5,7.78222537]
[1772561078063,1.21267858,1981.3,1980.5,0.00481923]
[1772561078267,1.2065103,1981.1,1980.2,8.02888614]
[1772561078464,1.2065103,1981.1,1980.1,1.16540614]
[1772561079264,1.2065103,1981.1,1980.1,1.17096229]
[1772561080270,1.2065103,1980.8,1980.1,0.00555615]
[1772561080465,1.2065103,1980.8,1979.7,1.16540614]
[1772561080672,1.2065103,1980.8,1979.9,1.16540614]
[1772561081372,1.2065103,1980.8,1979.9,1.17050365]
[1772561084975,1.2065103,1980.8,1979.9,0.00509751]
[1772561085372,1.2065103,1980.8,1979.9,1.17050365]
[1772561085575,1.2065103,1980.8,1979.9,0.00509751]
[1772561085973,1.2065103,1980.4,1978.5,11.0778856]
[1772561086182,6.21051,1980.5,1978.4,1.16651591]
[1772561086183,1.2065103,1979.7,1978.4,1.16651591]
[1772561086482,1.2065103,1979.9,1978.9,0.91089307]
[1772561086781,1.2065103,1979.9,1979.1,0.91089307]
[1772561086981,1.21249479,1979.9,1979.1,0.9162498]
[1772561087182,1.21249479,1979.9,1979.1,0.00535673]
[1772561088082,1.21249479,1979.9,1979.1,0.91675094]
[1772561090285,1.21249479,1979.9,1979.1,0.00535673]
[1772561090778,1.21249479,1979.9,1979.1,0.93084271]
[1772561091680,0.00598449,1979.9,1979.3,0.9249154]
[1772561091882,1.22992825,1980.1,1979.5,0.9249154]
[1772561092278,1.22992825,1980.0,1979.1,1.13884555]
[1772561092886,1.23531628,1980.0,1979.3,1.13348882]
[1772561093081,1.23531628,1980.0,1979.2,1.38609882]
[1772561093479,1.23531628,1980.0,1979.1,0.00535673]
[1772561094186,1.23531628,1980.0,1979.1,1.39146555]
[1772561094381,1.23531628,1980.0,1979.5,0.25258]
[1772561094579,1.23531628,1980.0,1979.5,1.38606882]
[1772561095388,1.22992825,1980.6,1979.5,1.38606882]
[1772561096387,1.23510824,1980.6,1979.5,1.38606882]
[1772561101493,0.00517999,1980.6,1979.9,1.38600882]
[1772561101688,1.23510824,1980.6,1979.9,1.38600882]
[1772561102090,1.23510824,1980.6,1979.9,0.25252]
[1772561103489,1.23510824,1980.6,1979.6,1.13348882]
[1772561103796,1.22992825,1980.2,1979.3,0.25259]
[1772561104092,1.22992825,1980.2,1979.1,0.00535673]
[1772561104294,2.75684809,1980.0,1979.1,0.00535673]
[1772561104592,1.22992825,1979.9,1979.1,0.00535673]
[1772561105093,1.22992825,1979.9,1979.1,1.13884555]
[1772561105293,1.22992825,1979.9,1979.2,1.38609882]
[1772561106494,1.22992825,1980.1,1979.2,1.38609882]
[1772561106890,1.22992825,1980.3,1979.5,1.13348882]
[1772561107490,1.22992825,1980.3,1979.6,0.25256]
[1772561107694,1.22992825,1980.3,1979.6,1.38604882]
[1772561108394,1.22992825,1980.3,1979.2,1.13348882]
[1772561108589,1.22992825,1980.1,1979.1,0.25797673]
[1772561108793,1.22992825,1980.1,1979.1,1.39146555]
[1772561111196,1.22992825,1980.1,1979.1,0.25797673]
[1772561111392,6.612,1980.2,1979.1,1.39146555]
[1772561111393,1.22992825,1979.9,1979.1,1.39146555]
[1772561111588,1.22992825,1980.3,1979.4,1.13348882]
[1772561111791,1.22992825,1980.3,1979.5,1.38606882]
[1772561113196,1.22992825,1980.1,1979.1,1.13884555]
[1772561113788,1.22992825,1980.1,1979.2,0.25261]
[1772561113991,1.22992825,1980.0,1979.2,1.38609882]
[1772561115693,1.22992825,1980.0,1979.2,0.25261]
[1772561116197,1.22992825,1980.0,1979.2,1.38566015]
[1772561118601,1.21510982,1979.8,1979.1,0.00535673]
[1772561120200,1.21510982,1979.8,1979.1,1.12918105]
[1772561120398,1.13066474,1980.2,1979.6,1.12335936]
[1772561120593,1.13066474,1980.5,1980.1,1.40286565]
[1772561120796,1.13066474,1980.5,1980.1,0.2525]
[1772561121600,1.13066474,1980.5,1979.9,1.15036565]
[1772561121796,1.13066474,1980.5,1979.7,1.15036565]
[1772561122500,1.13066474,1980.5,1979.6,1.40291565]
[1772561122900,1.13066474,1980.3,1979.6,0.25255]
[1772561124101,1.13066474,1980.3,1979.4,6.613]
[1772561125002,1.13066474,1980.3,1979.3,1.15036565]
[1772561125207,1.13066474,1980.2,1979.3,1.15036565]
[1772561125503,1.13066474,1980.2,1979.1,0.00535673]
[1772561125707,1.13066474,1980.0,1979.1,1.15572238]
[1772561126304,1.13066474,1980.0,1979.3,1.15036565]
[1772561127106,1.13066474,1980.0,1979.2,1.40297565]
[1772561127806,1.13066474,1979.8,1978.7,1.40303565]
[1772561128009,1.13066474,1979.6,1978.7,1.40303565]
[1772561129006,1.13066474,1979.6,1978.7,1.4081369]
[1772561129906,7.74366474,1979.8,1979.1,1.40299565]
[1772561130108,1.13066474,1979.8,1979.1,1.40299565]
[1772561132307,1.13066474,1980.0,1979.5,1.15036565]
[1772561132513,1.13066474,1980.2,1979.5,1.15036565]
[1772561132815,1.13066474,1980.4,1979.7,1.15036565]
[1772561133009,6.61817999,1980.6,1979.9,1.15036565]
[1772561133010,1.13584473,1980.6,1979.9,1.15036565]
[1772561134909,0.00517999,1980.6,1980.1,1.15036565]
[1772561135114,0.00517999,1980.6,1980.1,1.15542497]
[1772561136011,1.13066474,1981.1,1980.2,0.25249]
[1772561136211,1.13066474,1981.1,1980.3,1.15036565]
[1772561137115,1.13476667,1981.1,1980.3,1.15036565]
[1772561137508,6.42557762,1981.7,1980.3,1.15036565]
[1772561137711,6.32159232,1982.7,1982.1,6.20521]
[1772561137912,1.23473795,1983.2,1982.6,0.25218]
[1772561138107,1.13066474,1984.4,1982.9,0.51007539]
[1772561138313,0.57213474,1983.8,1983.2,6.20167]
[1772561138514,0.00552262,1983.8,1983.3,1.15036565]
[1772561138810,0.32673518,1984.8,1983.3,1.15036565]
[1772561139016,1.13066474,1984.3,1983.2,0.00368766]
[1772561139621,1.13066474,1984.1,1983.2,0.00368766]
[1772561140113,12.97030932,1984.0,1983.2,0.00368766]
[1772561140312,1.13066474,1983.9,1983.2,0.00368766]
[1772561140509,1.13066474,1983.9,1983.2,1.15405331]
[1772561140715,12.97030932,1983.8,1983.2,1.15405331]
[1772561140915,1.13066474,1983.7,1983.2,0.00368766]
[1772561141316,1.13066474,1983.5,1982.8,7.76236565]
[1772561141717,1.13066474,1983.5,1982.8,1.15036565]
[1772561142117,14.10097406,1983.4,1982.8,1.15036565]
[1772561142318,1.13066474,1983.4,1982.8,1.15574831]
[1772561142714,1.13066474,1984.0,1982.8,1.15574831]
[1772561142914,12.97030932,1984.0,1983.4,1.15036565]
[1772561143720,0.00416586,1984.3,1982.8,0.00538266]
[1772561143721,1.13066474,1983.9,1982.8,0.00538266]
[1772561144514,1.13066474,1983.7,1982.8,0.00538266]
[1772561146023,1.13066474,1983.5,1982.8,0.00538266]
[1772561148426,12.97030932,1983.4,1982.8,2.12913262]
[1772561148631,1.96254433,1983.4,1982.8,2.12913262]
[1772561149932,1.96254433,1983.2,1982.4,2.12374996]
[1772561150125,1.96254433,1983.6,1982.5,2.12374996]
[1772561150325,1.96254433,1983.4,1982.6,2.12374996]
[1772561150931,1.96254433,1983.4,1982.6,2.12935728]
[1772561151125,1.96254433,1983.2,1982.6,2.12935728]
[1772561151329,1.96254433,1983.2,1982.6,0.00560732]
[1772561151825,14.93285365,1983.1,1982.6,2.12935728]
[1772561152031,1.96254433,1983.1,1982.6,2.12935728]
[1772561152330,12.97030932,1983.7,1981.3,10.32585175]
[1772561152331,1.96254433,1982.9,1981.7,2.12374996]
[1772561152532,1.96254433,1982.8,1981.5,2.12374996]
[1772561152732,1.96254433,1982.7,1981.5,2.12374996]
[1772561153328,1.96637466,1982.7,1981.5,2.12831188]
[1772561153524,1.96254433,1982.5,1981.5,0.00456192]
[1772561153729,1.96254433,1982.3,1981.5,0.00456192]
[1772561154130,12.97030932,1982.2,1981.5,0.00456192]
[1772561154331,1.96254433,1982.1,1981.5,0.00456192]
[1772561154925,1.96254433,1981.9,1981.5,0.00456192]
[1772561155132,1.96254433,1981.9,1980.9,2.12374996]
[1772561155325,1.96254433,1981.7,1980.7,2.37616996]
[1772561156132,1.96254433,1981.5,1980.7,0.00501056]
[1772561156529,12.97030932,1981.4,1980.7,0.00501056]
[1772561156736,1.96254433,1981.3,1980.3,2.12374996]
[1772561157030,1.96254433,1981.2,1980.2,0.25248]
[1772561157227,1.96254433,1981.2,1979.9,2.12374996]
[1772561157431,1.96254433,1981.0,1979.9,2.12374996]
[1772561157834,1.96254433,1980.8,1979.9,2.12850769]
[1772561159036,12.97030932,1980.7,1979.9,2.12850769]
[1772561160532,1.96653654,1981.0,1980.1,2.12374996]
[1772561160735,9.18346007,1980.9,1980.5,0.80056137]
[1772561160932,0.00399221,1981.0,1980.6,1.05300137]
[1772561161137,1.96254433,1981.2,1980.6,1.05300137]
[1772561161338,6.22152353,1981.1,1980.7,0.80056137]
[1772561161542,1.96254433,1981.8,1981.0,1.22305185]
[1772561161739,6.612,1982.3,1981.2,1.22302185]
[1772561161935,1.96254433,1982.2,1981.2,6.86436]
[1772561162236,1.96254433,1982.0,1981.2,6.86436]
[1772561162633,5.62167353,1981.9,1981.2,8.12187334]
[1772561162834,7.58421786,1981.9,1981.2,8.12187334]
[1772561163033,1.96254433,1981.8,1980.9,6.612]
[1772561163237,1.96254433,1981.8,1981.0,0.25239]
[1772561163435,5.62167353,1981.7,1981.2,0.25236]
[1772561163738,1.96254433,1981.6,1981.2,0.25236]
[1772561164134,5.04259353,1981.5,1981.2,0.25236]
[1772561164339,1.96254433,1982.1,1981.2,1.50304322]
[1772561164534,1.96254433,1982.0,1981.0,7.82122749]
[1772561164735,1.96254433,1982.0,1981.0,6.612]
[1772561165136,4.52272353,1981.9,1981.3,0.25235]
[1772561165442,1.96902777,1982.2,1981.5,0.25232]
[1772561165443,1.96254433,1982.0,1981.5,0.25232]
[1772561165740,0.00648344,1982.2,1981.5,0.25232]
[1772561165741,1.96254433,1981.8,1981.5,0.25232]
[1772561165939,1.96254433,1982.0,1981.5,0.25232]
[1772561166239,4.52272353,1982.1,1981.5,0.25232]
[1772561166240,4.52272353,1982.1,1981.6,1.24073804]
[1772561166441,0.00648344,1982.2,1981.7,1.52000035]
[1772561166735,5.95971786,1982.2,1981.7,1.52000035]
[1772561167130,5.95971786,1982.2,1981.7,0.2523]
[1772561167532,5.95971786,1982.2,1981.7,1.54723332]
[1772561167533,0.00445604,1982.2,1981.7,1.54723332]
[1772561167839,5.44342786,1982.2,1981.7,1.54723332]
[1772561168234,2.97162353,1982.2,1981.7,1.54723332]
[1772561168637,1.96254433,1982.1,1981.7,0.2523]
[1772561169342,1.96254433,1981.9,1981.7,0.2523]
[1772561169538,1.96254433,1981.9,1981.3,0.0036914]
[1772561169837,0.00376949,1982.2,1980.8,6.612]
[1772561169838,1.96254433,1981.7,1980.8,6.612]
[1772561170037,1.96254433,1981.7,1980.9,5.83835765]
[1772561170239,1.96254433,1981.7,1981.0,5.83835765]
[1772561170439,1.96254433,1981.7,1980.8,6.612]
[1772561170641,1.96254433,1981.5,1980.9,5.84013475]
[1772561170840,1.96254433,1981.5,1981.0,5.84013475]
[1772561171032,1.96254433,1981.3,1980.9,0.00393706]
[1772561171840,1.96254433,1981.7,1981.0,0.25239]
[1772561172036,0.96793767,1981.6,1981.0,0.25239]
[1772561172436,2.89854766,1981.6,1981.1,5.84732279]
[1772561172637,2.89854766,1981.6,1981.0,0.25239]
[1772561172845,2.89854766,1981.6,1981.1,5.84653331]
[1772561173146,2.89854766,1981.6,1981.2,5.85305684]
[1772561173344,2.89854766,1981.6,1981.0,0.25239]
[1772561173547,1.96254433,1982.1,1981.2,2.37610996]
[1772561173736,1.96254433,1982.1,1981.3,5.85504617]
[1772561173940,1.96254433,1982.1,1981.2,8.98810996]
[1772561174140,1.96254433,1982.1,1981.2,6.86436]
[1772561174340,1.96254433,1982.1,1981.3,5.8636123]
[1772561174544,1.96254433,1982.1,1981.2,6.86436]
[1772561174739,1.96254433,1982.1,1981.3,5.86435584]
[1772561174943,1.96254433,1982.1,1981.2,8.98810996]
[1772561175144,1.96254433,1982.1,1981.3,5.86611563]
[1772561175441,1.96254433,1982.1,1981.5,2.12374996]
[1772561175647,1.96254433,1982.1,1981.6,5.86895319]
[1772561175845,1.47674849,1982.1,1981.6,2.12374996]
[1772561176148,0.00376949,1982.2,1981.8,2.12374996]
[1772561176746,1.96631382,1982.2,1981.7,2.37604996]
[1772561176943,1.96631382,1982.2,1981.8,5.86868309]
[1772561177143,1.96631382,1982.2,1981.7,2.37604996]
[1772561177144,0.00376949,1982.2,1981.7,2.37604996]
[1772561177445,1.96254433,1982.6,1981.8,5.8694437]
[1772561177643,1.96254433,1982.6,1981.7,0.2523]
[1772561177847,1.96254433,1982.6,1981.6,6.612]
[1772561178244,1.96254433,1982.6,1981.6,6.86431]
[1772561178443,1.96884251,1982.6,1981.7,2.5732114]
[1772561180151,1.96884251,1982.6,1981.8,2.76217495]
[1772561181348,1.96884251,1982.6,1981.9,2.50989495]
[1772561184948,1.96884251,1982.6,1981.8,0.25228]
[1772561185353,1.96884251,1982.6,1981.8,2.76217495]
[1772561186160,2.45782472,1983.2,1982.2,2.50989495]
[1772561186358,2.45782472,1983.2,1982.3,0.25222]
[1772561186654,2.45782472,1983.2,1981.9,4.06066563]
[1772561186655,2.70994472,1983.1,1981.9,6.86427]
[1772561186956,2.70998472,1982.8,1981.5,2.76221495]
[1772561187251,2.71488577,1982.8,1981.5,2.76611869]
[1772561187456,2.46272577,1982.8,1981.8,2.76216495]
[1772561188057,2.46272577,1982.8,1982.0,0.25226]
[1772561191355,2.46272577,1982.8,1981.7,2.50989495]
[1772561191557,2.45782472,1982.4,1981.4,1.42273948]
[1772561191756,2.45782472,1982.2,1981.2,6.86336]
[1772561192453,2.45782472,1982.2,1981.2,9.37325495]
[1772561192653,2.45782472,1982.2,1981.2,9.3795025]
[1772561192857,2.45782472,1982.2,1981.2,6.86960755]
[1772561193656,2.45782472,1982.2,1981.3,2.50989495]
[1772561197364,2.45782472,1982.2,1981.2,0.25860755]
[1772561197561,2.45782472,1982.2,1981.2,2.7685025]
[1772561197959,2.45782472,1982.4,1981.6,2.76220495]
[1772561198563,2.45782472,1982.7,1982.0,2.76214495]
[1772561199165,2.45782472,1982.7,1981.9,6.612]
[1772561199166,2.45782472,1982.7,1981.8,2.50989495]
[1772561199369,2.45782472,1982.7,1981.7,6.612]
[1772561200264,2.45782472,1982.7,1981.6,2.76220495]
[1772561200668,2.45782472,1982.7,1981.4,6.612]
[1772561200669,2.45782472,1982.5,1981.4,9.12189495]
[1772561201668,2.45782472,1982.5,1981.5,2.50989495]
[1772561202169,2.45782472,1982.4,1981.3,2.50989495]
[1772561202771,2.45782472,1982.4,1981.4,0.25233]
[1772561202972,2.45782472,1982.4,1981.5,2.50989495]
[1772561205467,2.45782472,1982.4,1981.4,0.25233]
[1772561205668,2.45782472,1982.4,1981.4,2.76222495]
[1772561207577,2.45782472,1982.4,1981.4,0.25233]
[1772561207873,2.71004472,1982.4,1981.2,2.5161425]
[1772561208185,2.60840739,1982.1,1981.2,0.00624755]
[1772561208375,2.60840739,1981.9,1981.2,0.00624755]
[1772561208576,2.60840739,1981.9,1980.8,6.24759993]
[1772561208577,2.60840739,1981.8,1980.8,2.67259109]
[1772561208778,2.60840739,1981.5,1980.3,2.67259109]
[1772561208978,2.60840739,1981.3,1980.3,2.67259109]
[1772561209582,2.61229823,1981.3,1980.3,2.67853459]
[1772561210276,2.60840739,1981.2,1980.3,0.0059435]
[1772561213080,2.60840739,1981.2,1979.9,2.67259109]
[1772561213281,2.60840739,1980.9,1979.7,2.67259109]
[1772561213483,2.60840739,1980.7,1979.7,2.67259109]
[1772561213777,2.60840739,1980.6,1979.5,2.67259109]
[1772561213984,2.60840739,1980.3,1979.5,0.00386728]
[1772561214186,2.60840739,1980.1,1979.0,2.67259109]
[1772561214681,2.60840739,1980.1,1979.0,2.92522109]
[1772561215078,2.60840739,1980.1,1979.0,2.92889779]
[1772561221089,2.60840739,1980.0,1979.0,0.0036767]
[1772561221384,2.60840739,1979.7,1978.6,2.67259109]
[1772561221583,2.60840739,1979.5,1978.6,2.67259109]
[1772561222187,9.22340739,1979.9,1979.0,2.67259109]
[1772561222390,2.61446978,1979.9,1979.2,2.67259109]
[1772561222894,2.61446978,1979.9,1979.0,2.67797205]
[1772561223295,2.61446978,1979.9,1979.0,2.93060205]
[1772561223692,2.60840739,1980.3,1979.3,2.67259109]
[1772561223897,2.60840739,1980.6,1979.9,2.67259109]
[1772561224900,2.61298061,1980.6,1979.7,2.67259109]
[1772561227696,2.61298061,1980.6,1979.4,2.67259109]
[1772561227895,2.61298061,1980.6,1979.6,2.67259109]
[1772561228097,2.61298061,1980.6,1979.8,2.67259109]
[1772561228498,2.61298061,1980.6,1980.0,2.67259109]
[1772561228694,2.61298061,1980.6,1979.5,2.67259109]
[1772561228899,2.60840739,1979.9,1979.0,2.67797205]
[1772561229097,9.22340739,1979.9,1979.0,2.67797205]
[1772561229498,2.60840739,1979.8,1979.0,2.67797205]
[1772561230999,2.60840739,1979.8,1979.0,0.00538096]
[1772561231197,6.615,1979.9,1978.4,0.25271]
[1772561231198,2.60840739,1979.6,1978.6,2.67259109]
[1772561232094,2.60840739,1979.6,1978.6,2.67653812]
[1772561236000,2.60840739,1979.4,1978.6,0.00394703]
[1772561236202,2.60840739,1979.2,1978.2,2.67259109]
[1772561237206,2.61345241,1979.2,1978.2,2.67690485]
[1772561237506,9.22845241,1979.2,1978.4,2.67259109]
[1772561237906,2.57248388,1979.1,1978.4,2.67259109]
[1772561238407,2.57248388,1979.1,1978.2,2.41941434]
[1772561238907,0.00504502,1979.2,1978.7,2.41510058]
[1772561239099,2.57248388,1979.6,1978.7,2.41510058]
[1772561239304,9.18748388,1979.8,1978.9,2.41510058]
[1772561239505,2.57248388,1979.7,1978.9,2.41510058]
[1772561240207,2.57825202,1979.7,1978.4,2.35470769]
[1772561240412,2.83081202,1979.7,1978.4,2.35470769]
[1772561240806,2.39194398,1979.3,1978.2,2.35902145]
[1772561241006,2.39194398,1979.1,1978.2,2.35902145]
[1772561241710,2.39194398,1979.0,1978.2,2.61176145]
[1772561245013,0.25258,1979.5,1978.7,2.35470769]
[1772561245014,2.39194398,1979.4,1978.7,2.35470769]
[1772561245612,6.615,1979.5,1978.7,2.35470769]
[1772561246012,0.00576814,1979.7,1978.9,2.35470769]
[1772561246213,2.39771212,1979.7,1978.9,2.35470769]
[1772561247412,9.00694398,1979.6,1978.9,2.35470769]
[1772561247615,2.39194398,1979.5,1978.9,2.35470769]
[1772561250220,0.00576814,1979.7,1979.1,2.35470769]
[1772561250417,9.00594398,1980.3,1979.5,2.35470769]
[1772561250618,4.18169522,1980.7,1979.7,2.35470769]
[1772561250619,2.39194398,1980.2,1979.7,2.35470769]
[1772561250919,2.39194398,1980.6,1979.7,2.35470769]
[1772561251421,2.39821152,1980.6,1979.9,2.35470769]
[1772561251721,2.39821152,1980.6,1979.7,2.36065594]
[1772561252616,2.39821152,1980.6,1979.7,0.00594825]
[1772561253617,2.39821152,1980.6,1979.7,2.36065594]
[1772561253817,2.39194398,1980.4,1979.7,2.36065594]
[1772561257015,0.00626754,1980.6,1979.7,2.36065594]
[1772561257221,2.39821152,1980.6,1979.7,2.61320594]
[1772561258122,0.00626754,1980.6,1979.7,2.61320594]
[1772561258725,2.39821152,1980.6,1979.7,2.36065594]
[1772561260222,9.01121152,1980.6,1979.7,2.36065594]
[1772561260423,2.39194398,1980.5,1979.7,2.36065594]
[1772561262530,6.61926754,1980.6,1979.7,2.36065594]
[1772561262932,9.01121152,1980.6,1979.7,2.36065594]
[1772561263934,2.39194398,1980.5,1979.7,2.36065594]
[1772561265034,2.39194398,1980.5,1979.7,0.00594825]
[1772561265230,2.39194398,1980.5,1979.3,2.35470769]
[1772561265438,2.39194398,1980.3,1979.2,0.25261]
[1772561265629,2.39194398,1980.3,1979.2,2.60731769]